bitfinex/quotes_ETHUSD_20250129
["timestamp","ask_amount","ask_price","bid_price","bid_amount"]
[1738165023574,3.22541,3100.4,3099.8,3.29494333]
[1738165023795,3.22543,3100.4,3099.6,3.22612]
[1738165023985,3.22543,3100.4,3099.9,0.06894767]
[1738165024311,3.22543,3100.4,3100.0,0.06888202]
[1738165024473,3.22543,3100.4,3099.8,3.22594]
[1738165024810,3.22543,3100.4,3099.9,0.06894767]
[1738165025012,3.2258,3100.0,3099.9,0.06894767]
[1738165025307,3.9958,3100.0,3099.4,5.78039]
[1738165025468,3.2257,3100.2,3099.6,3.2262]
[1738165025667,3.2257,3100.2,3099.7,3.29517899]
[1738165025974,3.22559,3100.2,3099.7,0.06907899]
[1738165026169,3.22587,3100.0,3099.7,0.06907899]
[1738165026387,3.22587,3100.0,3099.5,0.381]
[1738165026709,3.22597,3099.9,3099.5,0.381]
[1738165026876,3.22604,3099.8,3099.6,0.06914465]
[1738165027071,3.22587,3100.0,3099.6,0.06914465]
[1738165027410,3.22564,3100.2,3099.6,3.29535465]
[1738165027606,3.22575,3100.1,3099.6,0.06914465]
[1738165027807,3.22611,3099.7,3099.6,0.06914465]
[1738165028516,3.93429142,3100.1,3099.6,0.06914465]
[1738165028695,3.22573,3100.1,3099.6,0.06914465]
[1738165028897,3.85972422,3100.3,3099.8,3.22601]
[1738165028898,3.85976422,3100.3,3099.8,3.22601]
[1738165029209,3.85976422,3100.3,3099.9,0.06946284]
[1738165029719,3.85976422,3100.3,3100.0,0.06971298]
[1738165029923,3.85976422,3100.3,3099.6,35.0]
[1738165030229,3.22555,3100.3,3099.7,4.07674995]
[1738165030722,3.2257,3100.2,3099.7,0.06990995]
[1738165030885,3.2257,3100.2,3099.5,6.83362]
[1738165030886,3.22601,3099.8,3099.5,0.381]
[1738165031080,3.22601,3099.8,3099.6,0.06992159]
[1738165031706,3.22611,3099.7,3099.6,0.06992159]
[1738165031922,3.87535504,3099.7,3099.4,2.554]
[1738165032100,3.22632,3099.5,3099.4,2.554]
[1738165032298,3.22632,3099.5,3099.4,2.62405293]
[1738165032913,3.99872,3099.5,3099.4,2.554]
[1738165033310,4.00622,3099.5,3099.4,2.554]
[1738165033616,4.85923693,3099.5,3099.4,2.554]
[1738165035413,3.99872,3099.5,3099.4,2.554]
[1738165035614,3.99872,3099.5,3098.7,35.0]
[1738165035615,3.22668,3099.2,3098.7,35.0]
[1738165035815,3.22677,3099.1,3098.7,35.0]
[1738165036023,3.22662,3099.3,3098.8,0.07044706]
[1738165036526,3.22674,3099.1,3098.9,0.07038136]
[1738165036724,3.22674,3099.1,3098.6,38.60817]
[1738165037028,3.22685,3099.0,3098.7,0.07051276]
[1738165037231,3.22659,3099.3,3098.7,0.07051276]
[1738165037524,3.99876,3099.5,3098.9,3.22692]
[1738165037823,3.22654,3099.3,3099.0,0.0706607]
[1738165038008,3.22664,3099.2,3099.0,0.0706607]
[1738165038212,7.22516,3099.5,3098.7,3.22708]
[1738165038425,3.99875,3099.5,3099.1,0.07059501]
[1738165038719,8.01249142,3099.5,3099.2,0.0707912]
[1738165038921,3.22615,3099.7,3099.0,3.22677]
[1738165039121,3.22615,3099.7,3099.1,0.07085689]
[1738165039324,0.65249948,3099.8,3099.1,0.07085689]
[1738165039523,3.22559,3100.3,3099.6,3.22616]
[1738165039826,3.22535,3100.5,3099.7,3.29650373]
[1738165039988,3.22535,3100.5,3099.9,3.22589]
[1738165039989,3.22549,3100.4,3099.9,3.22589]
[1738165040194,3.22535,3100.5,3099.8,0.7834]
[1738165040396,3.2255,3100.3,3100.0,0.07023676]
[1738165040615,3.2255,3100.3,3099.9,0.07016938]
[1738165040929,3.2255,3100.3,3100.0,0.07010373]
[1738165041107,3.2255,3100.3,3099.8,0.7834]
[1738165041297,3.2255,3100.3,3099.9,0.07016938]
[1738165041627,4.04135,3100.6,3100.0,3.2258]
[1738165041834,7.26662,3100.6,3100.0,3.2258]
[1738165042036,3.22525,3100.6,3100.1,3.29557832]
[1738165042232,3.22525,3100.6,3100.1,0.06993832]
[1738165042447,3.22551,3100.3,3100.1,0.06993832]
[1738165042601,3.22559,3100.2,3100.1,0.06993832]
[1738165042934,3.22551,3100.3,3100.1,0.06982611]
[1738165043141,3.22533,3100.5,3099.9,3.22589]
[1738165043431,3.22527,3100.6,3100.0,0.06989176]
[1738165043619,3.22527,3100.6,3100.0,3.29563176]
[1738165043820,3.22536,3100.5,3100.1,35.0]
[1738165044139,3.22528,3100.5,3100.2,0.06972307]
[1738165044439,6.4501,3100.8,3100.2,4.09327307]
[1738165044601,3.22504,3100.8,3100.2,0.86772307]
[1738165044798,3.22516,3100.7,3100.2,0.86772307]
[1738165045344,0.7913,3101.7,3100.2,1.24872307]
[1738165045636,0.64772154,3101.4,3100.4,3.22529]
[1738165045820,3.22461,3101.2,3100.6,3.22515]
[1738165045999,3.22461,3101.2,3100.6,3.22509]
[1738165046196,3.22461,3101.2,3100.7,0.06931181]
[1738165046434,3.22445,3101.3,3100.7,3.29438181]
[1738165046598,3.22463,3101.2,3100.7,0.06931181]
[1738165046802,3.22469,3101.1,3100.7,0.06931181]
[1738165047441,6.44899,3101.3,3100.7,0.06931181]
[1738165047636,3.22445,3101.3,3100.7,0.06931181]
[1738165047935,0.64772154,3101.4,3100.9,3.22485]
[1738165048110,3.22458,3101.2,3101.0,0.06892388]
[1738165048314,0.64772154,3101.4,3100.7,3.22503]
[1738165048315,3.87217154,3101.4,3100.7,3.22503]
[1738165048529,3.22457,3101.2,3100.8,0.0690551]
[1738165048835,3.87217154,3101.4,3100.7,3.22503]
[1738165049035,3.22458,3101.2,3100.9,0.06898949]
[1738165049235,3.22458,3101.2,3100.8,0.06672781]
[1738165049236,3.22473,3101.1,3100.8,0.06672781]
[1738165049541,3.22473,3101.1,3100.9,0.06591826]
[1738165049742,6.44922,3101.2,3100.6,4.05105]
[1738165050061,3.22497,3100.8,3100.7,0.06604949]
[1738165050552,3.22497,3100.8,3100.1,0.381]
[1738165050553,3.22556,3100.3,3099.7,3.3445]
[1738165050703,3.22556,3100.3,3099.8,0.06664025]
[1738165051045,6.45115,3100.3,3099.7,6.57061]
[1738165051204,6.45115,3100.3,3099.9,0.0665746]
[1738165051404,3.22572,3100.1,3099.8,0.06664025]
[1738165051707,3.22566,3100.2,3099.7,3.3445]
[1738165052113,3.22571,3100.1,3099.7,3.3445]
[1738165052320,3.22593,3099.9,3099.7,2.555]
[1738165052613,6.22601,3099.8,3099.1,0.381]
[1738165052814,3.2264,3099.5,3099.1,0.381]
[1738165053544,3.22661,3099.3,3099.1,0.381]
[1738165054051,3.22636,3099.5,3099.1,0.381]
[1738165054248,3.22612,3099.7,3099.2,3.2266]
[1738165054556,3.22585,3100.0,3099.4,3.22637]
[1738165054716,3.22604,3099.8,3099.3,0.7768]
[1738165054912,0.63643959,3100.1,3099.3,0.7768]
[1738165054913,3.22585,3100.0,3099.3,0.7768]
[1738165055247,3.22585,3100.0,3099.4,3.22642]
[1738165055552,3.22594,3099.9,3099.4,3.22642]
[1738165055748,0.63643959,3100.1,3099.4,3.22642]
[1738165055909,0.63643959,3100.1,3099.6,3.22614]
[1738165056109,0.63643959,3100.1,3099.6,3.22612]
[1738165056416,3.225,3100.8,3100.0,0.8267]
[1738165056615,3.22511,3100.7,3100.1,3.22561]
[1738165056841,3.87722989,3100.7,3100.1,3.22561]
[1738165057051,3.22524,3100.6,3100.1,3.22561]
[1738165057253,0.65211989,3100.7,3100.1,3.22561]
[1738165057453,0.65211989,3100.7,3100.2,3.22553]
[1738165057717,0.65211989,3100.7,3100.1,3.2256]
[1738165058063,3.87719989,3100.7,3100.2,3.22559]
[1738165058215,3.22482,3101.0,3100.4,3.22531]
[1738165058419,3.22482,3101.0,3100.2,3.22554]
[1738165058748,0.04031387,3100.9,3100.0,4.05244]
[1738165059050,3.22528,3100.6,3100.0,4.05244]
[1738165059211,0.36682491,3100.9,3100.1,0.06658013]
[1738165059418,3.22557,3100.3,3100.1,0.06658013]
[1738165059726,3.22557,3100.3,3099.8,0.381]
[1738165059922,3.22573,3100.1,3099.9,0.06456961]
[1738165060123,3.2258,3100.0,3099.9,0.06456961]
[1738165060937,3.22634,3099.5,3099.3,0.381]
[1738165061136,3.22651,3099.4,3098.9,0.381]
[1738165061369,3.22662,3099.3,3098.9,0.381]
[1738165061674,3.22638,3099.5,3098.9,3.60788]
[1738165061875,3.22651,3099.4,3098.9,0.381]
[1738165062182,3.22675,3099.1,3098.9,0.381]
[1738165062472,0.55,3099.8,3098.9,0.381]
[1738165062473,2.91891988,3099.3,3098.9,0.381]
[1738165062640,3.22645,3099.4,3098.9,3.60794]
[1738165062844,3.22672,3099.2,3098.9,0.381]
[1738165063181,3.2268,3099.1,3098.9,0.381]
[1738165063396,0.63699486,3099.5,3098.9,0.381]
[1738165063604,3.22701,3098.9,3098.5,2.555]
[1738165063901,3.22684,3099.0,3098.5,2.936]
[1738165064048,6.45378,3099.0,3098.5,2.936]
[1738165064249,3.22684,3099.0,3098.5,6.16334]
[1738165064477,4.00448,3099.2,3098.5,6.16334]
[1738165064781,3.2268,3099.1,3098.5,6.16328]
[1738165065344,3.2268,3099.1,3098.6,3.22724]
[1738165065782,3.22654,3099.3,3098.6,3.22724]
[1738165065996,3.22654,3099.3,3098.8,3.22702]
[1738165066278,3.22638,3099.5,3098.9,3.22694]
[1738165066450,3.22638,3099.5,3098.8,3.22702]
[1738165066658,3.22638,3099.5,3098.9,3.22694]
[1738165066891,3.2265,3099.4,3098.8,3.22702]
[1738165067082,3.2265,3099.4,3098.5,2.555]
[1738165067083,3.22697,3098.9,3098.5,2.555]
[1738165067265,3.22708,3098.8,3098.5,2.555]
[1738165067471,3.22684,3099.1,3098.5,2.555]
[1738165067778,3.22691,3099.0,3098.5,2.555]
[1738165068210,3.22681,3099.1,3098.5,2.555]
[1738165068211,3.22658,3099.3,3098.5,5.78229]
[1738165068426,3.2268,3099.1,3098.5,5.78229]
[1738165068707,3.22708,3098.8,3098.5,2.555]
[1738165068907,3.22687,3099.0,3098.5,2.555]
[1738165069283,0.0075,3099.3,3098.5,2.555]
[1738165069483,3.22713,3098.8,3098.5,2.555]
[1738165070709,3.22675,3099.1,3098.6,3.22725]
[1738165070919,3.22675,3099.1,3098.5,5.78232]
[1738165071708,3.22666,3099.2,3098.5,2.555]
[1738165071895,3.22686,3099.0,3098.5,5.78233]
[1738165072534,0.65854964,3099.1,3098.5,5.78233]
[1738165072681,3.88528964,3099.1,3098.6,3.22721]
[1738165072882,3.22674,3099.1,3098.6,3.22721]
[1738165073179,3.22674,3099.1,3098.5,5.78234]
[1738165073414,3.22666,3099.2,3098.6,3.22719]
[1738165074281,3.22666,3099.2,3098.7,3.29105622]
[1738165074605,7.08803076,3099.4,3098.7,0.06397622]
[1738165074916,3.22654,3099.3,3098.8,3.22703]
[1738165075421,3.22636,3099.5,3099.0,4.05342]
[1738165075590,3.22625,3099.6,3099.1,3.22671]
[1738165075911,3.22625,3099.6,3099.1,3.29082458]
[1738165077101,3.22634,3099.5,3099.1,0.06411458]
[1738165077316,3.22608,3099.8,3099.1,0.06411458]
[1738165077488,3.22622,3099.7,3099.1,0.06411458]
[1738165077689,3.22623,3099.6,3099.1,3.29083458]
[1738165077901,3.22608,3099.8,3099.1,0.06411458]
[1738165077902,3.2265,3099.4,3099.1,0.06411458]
[1738165078638,3.22628,3099.6,3099.1,0.06411458]
[1738165078793,3.22628,3099.6,3099.1,3.29078458]
[1738165078989,6.45215,3099.8,3099.1,0.06411458]
[1738165079192,3.22604,3099.8,3099.1,3.29084458]
[1738165079389,3.22621,3099.7,3099.1,3.29084458]
[1738165079801,3.99362,3100.0,3099.2,3.22663]
[1738165080107,3.22563,3100.2,3099.6,3.22615]
[1738165080294,3.22563,3100.2,3099.5,3.22627]
[1738165080498,0.649538,3100.3,3099.6,0.06364142]
[1738165080700,3.22611,3099.7,3099.2,0.7897]
[1738165080898,3.22674,3099.1,3098.8,0.7694]
[1738165081099,3.22654,3099.3,3098.8,0.7694]
[1738165081299,3.22634,3099.5,3099.0,3.22676]
[1738165081495,3.22634,3099.5,3098.8,0.7694]
[1738165081704,3.22654,3099.3,3098.8,0.7694]
[1738165081899,3.22634,3099.5,3098.9,3.22691]
[1738165082139,3.22634,3099.5,3099.0,3.22684]
[1738165082507,3.22644,3099.4,3098.8,3.9964]
[1738165082826,3.88692465,3099.6,3098.9,3.22688]
[1738165083202,3.22643,3099.4,3098.9,3.22688]
[1738165083603,7.11328465,3099.6,3098.9,6.45376]
[1738165083821,7.11327465,3099.6,3099.0,3.22679]
[1738165084101,3.22638,3099.5,3098.9,3.22686]
[1738165084299,3.22638,3099.5,3098.8,0.7694]
[1738165084300,3.2258,3100.1,3099.1,0.7582]
[1738165084565,0.16759516,3100.4,3099.9,3.22585]
[1738165084703,3.22539,3100.4,3099.9,3.22583]
[1738165084905,3.22552,3100.3,3099.7,3.22605]
[1738165085127,3.22575,3100.1,3099.5,3.22623]
[1738165085322,3.22575,3100.1,3099.6,3.22618]
[1738165086137,3.22575,3100.1,3099.4,3.22637]
[1738165086416,3.22595,3099.9,3099.4,3.0]
[1738165086616,3.22595,3099.9,3099.4,6.22642]
[1738165087201,3.22595,3099.9,3099.3,3.98473]
[1738165087202,3.22607,3099.8,3099.3,3.98473]
[1738165087455,4.0188,3100.0,3099.4,3.22636]
[1738165087623,4.0188,3100.0,3099.5,3.22631]
[1738165087804,3.22593,3099.9,3099.3,3.98464]
[1738165088114,0.7929,3100.0,3099.4,3.22633]
[1738165088309,3.22593,3099.9,3099.4,3.22633]
[1738165088706,1.19871214,3100.4,3099.3,0.7582]
[1738165088911,3.22539,3100.4,3099.9,3.2259]
[1738165089139,0.16766586,3100.6,3100.0,3.22579]
[1738165089341,3.22511,3100.7,3100.2,3.22553]
[1738165089507,3.22519,3100.6,3100.2,0.381]
[1738165089708,3.22529,3100.5,3100.3,0.0627807]
[1738165089916,3.22539,3100.4,3100.2,0.381]
[1738165090141,3.87106578,3100.7,3100.2,3.60656]
[1738165090316,3.22491,3100.9,3100.3,0.0627807]
[1738165090506,3.88201339,3100.9,3100.3,0.0627807]
[1738165090713,0.65710339,3100.9,3100.4,3.2253]
[1738165090908,0.7598,3101.4,3100.4,0.80885154]
[1738165091107,3.22451,3101.3,3100.7,3.22506]
[1738165091349,0.65026327,3101.1,3100.8,3.28715388]
[1738165091543,3.39202778,3101.5,3100.8,0.06218388]
[1738165091544,3.22447,3101.3,3100.8,0.06218388]
[1738165091763,3.22447,3101.3,3100.8,3.2249]
[1738165092262,3.22447,3101.3,3100.9,0.06211827]
[1738165092623,3.87732445,3101.3,3100.9,0.06211827]
[1738165092824,0.65284445,3101.3,3100.9,3.28698827]
[1738165093028,3.22406,3101.7,3101.1,0.7766]
[1738165093353,0.65568375,3101.6,3101.1,4.00118]
[1738165093652,0.65568375,3101.6,3101.2,0.06173551]
[1738165093849,3.22426,3101.5,3101.2,0.06173551]
[1738165094017,3.22445,3101.3,3101.2,0.06173551]
[1738165094215,3.87335171,3101.3,3101.2,0.06173551]
[1738165094550,3.22463,3101.2,3100.7,1.177]
[1738165094747,3.22441,3101.4,3100.8,3.22496]
[1738165094915,3.22456,3101.2,3100.7,4.40199]
[1738165095328,3.22436,3101.4,3100.7,7.627]
[1738165095531,3.22462,3101.2,3100.7,4.02199]
[1738165095736,3.22462,3101.2,3100.7,0.38]
[1738165095935,3.22494,3100.9,3100.7,0.38]
[1738165096411,3.26528338,3100.8,3100.1,3.22562]
[1738165096722,3.22515,3100.7,3100.2,0.38]
[1738165096926,3.22521,3100.6,3100.0,3.7757]
[1738165097148,3.22521,3100.6,3100.0,7.3815]
[1738165097318,3.22521,3100.6,3100.0,4.1557]
[1738165097519,3.22521,3100.6,3100.1,3.22569]
[1738165098134,3.22521,3100.6,3100.0,4.1557]
[1738165098322,3.22499,3100.8,3100.0,1.769747]
[1738165098521,3.22486,3101.0,3100.3,3.2254]
[1738165098757,3.22486,3101.0,3100.4,3.22532]
[1738165098957,0.8171,3101.3,3100.1,2.0]
[1738165098958,0.6442707,3101.1,3100.1,2.0]
[1738165099112,3.22447,3101.3,3100.7,3.22504]
[1738165099525,3.22447,3101.3,3100.7,3.60504]
[1738165099825,3.22429,3101.5,3100.7,0.38]
[1738165100015,3.22404,3101.7,3101.1,3.22458]
[1738165100215,3.22423,3101.6,3100.9,3.22487]
[1738165100520,3.22423,3101.6,3101.1,3.22464]
[1738165101277,3.22384,3101.9,3101.3,3.22437]
[1738165101435,3.224,3101.8,3101.2,3.22454]
[1738165102122,3.22373,3102.0,3100.8,0.7524]
[1738165102320,0.099997,3103.5,3102.0,3.22371]
[1738165102321,0.65626853,3102.1,3102.0,3.22371]
[1738165102542,3.22333,3102.4,3101.6,0.03223677]
[1738165102771,3.22362,3102.2,3101.6,3.2241]
[1738165102974,0.32639163,3102.1,3101.5,0.7948]
[1738165103171,3.22411,3101.7,3101.1,1.2077]
[1738165103374,3.22441,3101.4,3100.7,0.8277]
[1738165103575,0.04030939,3101.3,3100.7,0.8277]
[1738165103775,3.22441,3101.4,3100.8,3.22496]
[1738165104123,3.2245,3101.3,3100.7,4.2077]
[1738165104387,3.22462,3101.2,3100.8,0.06089467]
[1738165104651,3.22462,3101.2,3100.7,4.2077]
[1738165104867,4.0065,3101.3,3100.9,0.06082905]
[1738165105176,3.87810455,3101.1,3100.8,0.06110941]
[1738165105319,0.65343455,3101.1,3100.9,0.0610438]
[1738165105522,0.65343455,3101.1,3100.7,1.2077]
[1738165105965,0.65343455,3101.1,3100.8,0.06110941]
[1738165106200,0.65343455,3101.1,3100.7,1.2077]
[1738165106401,0.65343455,3101.1,3100.9,0.06108923]
[1738165106610,3.87812455,3101.1,3100.8,0.06115484]
[1738165106788,3.87812455,3101.1,3101.0,0.06102362]
[1738165107080,3.22478,3101.0,3100.7,0.38]
[1738165107284,3.2249,3100.9,3100.4,4.02773]
[1738165107488,3.22499,3100.8,3100.5,0.38]
[1738165107664,3.2249,3100.9,3100.5,0.38]
[1738165107988,3.22503,3100.8,3100.5,0.38]
[1738165108282,0.04031474,3100.7,3100.2,0.38]
[1738165108452,6.44988,3100.9,3100.3,3.22547]
[1738165108653,3.22492,3100.9,3100.3,3.22547]
[1738165109085,3.22499,3100.8,3100.3,3.22547]
[1738165109660,3.22492,3100.9,3100.2,0.38]
[1738165109863,3.22508,3100.7,3100.2,0.38]
[1738165110279,0.04031753,3100.6,3100.1,0.7647]
[1738165110477,0.04031753,3100.6,3100.0,0.38]
[1738165110478,3.22536,3100.5,3100.0,0.38]
[1738165110684,0.7716,3100.6,3100.0,0.38]
[1738165110985,0.7716,3100.6,3100.1,3.22568]
[1738165110986,3.99681,3100.6,3100.1,3.22568]
[1738165111187,3.22512,3100.7,3100.1,3.22568]
[1738165111361,3.22518,3100.6,3100.1,3.22568]
[1738165111562,3.22508,3100.7,3100.2,3.22558]
[1738165111860,3.22506,3100.8,3100.2,3.22558]
[1738165112065,3.22506,3100.8,3100.2,3.60558]
[1738165112261,3.22506,3100.8,3100.2,0.38]
[1738165112466,3.22493,3100.9,3100.4,0.7882]
[1738165112689,3.87815455,3101.1,3100.5,3.22527]
[1738165112864,3.87815455,3101.1,3100.4,0.7882]
[1738165112865,3.22491,3100.9,3100.4,0.7882]
[1738165113063,3.2253,3100.5,3100.2,0.38]
[1738165113411,3.22549,3100.3,3099.7,4.01423]
[1738165113725,3.22531,3100.5,3099.9,0.38]
[1738165114026,3.22509,3100.7,3100.1,3.22564]
[1738165115312,3.22532,3100.5,3099.9,3.60589]
[1738165115479,3.22562,3100.2,3099.9,0.38]
[1738165115674,3.22548,3100.4,3099.9,0.38]
[1738165115880,0.04031973,3100.4,3099.9,0.38]
[1738165116114,3.22511,3100.7,3100.1,3.22562]
[1738165116413,3.22539,3100.4,3099.9,3.60583]
[1738165116713,3.22545,3100.4,3099.9,3.60583]
[1738165116918,3.2256,3100.2,3099.7,0.7882]
[1738165117116,0.769,3100.3,3099.4,0.8046]
[1738165117292,3.22594,3099.9,3099.4,4.03098]
[1738165117504,3.22594,3099.9,3099.4,1.1846]
[1738165117505,0.04032713,3099.9,3099.4,1.1846]
[1738165117691,3.22582,3100.0,3099.4,4.41097]
[1738165118024,3.22564,3100.2,3099.6,3.22613]
[1738165118385,6.4513,3100.2,3099.6,3.22613]
[1738165118584,0.63923286,3100.2,3099.4,1.1846]
[1738165118780,3.22632,3099.5,3099.0,4.0105]
[1738165118979,3.22632,3099.5,3099.1,0.38]
[1738165119296,3.22632,3099.5,3099.2,0.06072251]
[1738165119490,3.22616,3099.7,3099.2,0.06072251]
[1738165120022,3.22581,3100.0,3099.3,0.7702]
[1738165120321,3.98846,3100.4,3099.8,3.22595]
[1738165120491,3.22549,3100.3,3099.8,3.60595]
[1738165120699,3.22561,3100.2,3099.9,0.06041142]
[1738165121018,3.22549,3100.3,3099.9,0.06041142]
[1738165121391,3.2257,3100.1,3099.9,0.06041142]
[1738165121803,6.45112,3100.3,3099.9,0.06041142]
[1738165122009,3.22554,3100.3,3099.9,0.06041142]
[1738165122517,3.86746576,3100.6,3100.1,3.22569]
[1738165122720,3.22545,3100.4,3099.9,4.10783142]
[1738165123016,3.22549,3100.3,3099.8,0.38]
[1738165123223,3.22499,3100.8,3100.0,0.06067585]
[1738165123224,0.7731,3100.1,3100.0,0.06067585]
[1738165123407,3.9988,3100.1,3100.0,0.06067585]
[1738165123606,3.2258,3100.0,3099.8,0.38]
[1738165123811,3.22591,3099.9,3099.8,0.38]
[1738165123997,3.22571,3100.1,3099.8,0.38]
[1738165124719,3.22591,3099.9,3099.8,0.38]
[1738165125622,3.22653,3099.4,3099.2,0.38]
[1738165125791,3.99836,3099.9,3099.0,0.38]
[1738165125792,3.22624,3099.6,3099.0,0.38]
[1738165125994,3.22644,3099.4,3099.0,0.38]
[1738165126187,3.22668,3099.2,3099.0,0.38]
[1738165127427,3.22668,3099.2,3098.7,4.03671]
[1738165127725,3.22668,3099.2,3098.7,4.41671]
[1738165127925,3.22643,3099.4,3098.7,4.41669]
[1738165128228,3.22643,3099.4,3098.8,3.22704]
[1738165128659,6.45293,3099.4,3098.8,3.22704]
[1738165128951,3.22653,3099.3,3098.8,3.22704]
[1738165129318,3.22653,3099.3,3098.6,2.934]
[1738165129532,3.22674,3099.1,3098.6,2.934]
[1738165129731,3.22674,3099.1,3098.6,6.16126]
[1738165130055,3.22653,3099.3,3098.6,6.16126]
[1738165130213,3.22653,3099.3,3098.7,3.22715]
[1738165131356,3.22653,3099.3,3098.8,3.22702]
[1738165132649,4.68686831,3099.5,3099.0,3.22682]
[1738165132856,3.22618,3099.7,3099.2,3.22662]
[1738165133017,3.22612,3099.7,3099.2,3.22662]
[1738165133212,0.7515,3099.8,3099.3,3.2265]
[1738165133424,3.22596,3099.9,3099.3,3.22653]
[1738165133643,3.22596,3099.9,3099.4,3.22642]
[1738165134050,3.22607,3099.8,3099.2,3.60655]
[1738165134273,3.22621,3099.7,3099.5,0.0611858]
[1738165134563,3.22601,3099.8,3099.2,0.38]
[1738165134777,3.22622,3099.6,3099.2,0.38]
[1738165134938,3.22622,3099.6,3099.3,0.06131715]
[1738165135319,3.22622,3099.6,3099.2,0.38]
[1738165135571,3.22601,3099.8,3099.4,0.06140421]
[1738165135867,3.22601,3099.8,3099.5,0.06133854]
[1738165136050,3.22622,3099.6,3099.5,0.06133854]
[1738165136359,3.22647,3099.4,3099.2,0.38]
[1738165136564,3.22653,3099.3,3099.2,0.38]
[1738165137127,3.22643,3099.4,3099.2,0.38]
[1738165137736,6.45292,3099.4,3099.2,0.38]
[1738165137938,3.22643,3099.4,3099.2,0.38]
[1738165138148,3.99436,3099.6,3099.2,0.38]
[1738165138349,3.22635,3099.5,3099.2,0.38]
[1738165138791,6.45277,3099.5,3099.2,0.38]
[1738165139386,3.22618,3099.7,3099.2,0.38]
[1738165139585,3.22622,3099.6,3099.2,0.38]
[1738165139754,3.22618,3099.7,3099.2,0.38]
[1738165140373,3.2261,3099.8,3099.3,3.22652]
[1738165140539,6.45194,3099.9,3099.3,3.22646]
[1738165140895,3.22598,3099.9,3099.3,4.43236]
[1738165141076,1.38861439,3100.0,3099.3,1.2059]
[1738165141387,3.22597,3099.9,3099.4,3.22633]
[1738165141954,3.22597,3099.9,3099.4,6.4527]
[1738165142202,3.22597,3099.9,3099.4,3.22633]
[1738165142671,6.45197,3099.9,3099.4,3.22633]
[1738165142984,3.22597,3099.9,3099.3,1.2059]
[1738165143185,3.22608,3099.8,3099.3,1.2059]
[1738165143393,0.83352817,3099.7,3098.9,0.7964]
[1738165143588,3.22622,3099.6,3099.0,0.38]
[1738165143888,6.45253,3099.6,3099.0,3.60682]
[1738165144292,3.22634,3099.5,3099.0,3.60682]
[1738165144792,3.22622,3099.6,3099.1,3.22672]
[1738165144939,3.22622,3099.6,3099.0,6.83359]
[1738165145135,6.45252,3099.6,3099.0,3.60677]
[1738165145393,3.22622,3099.6,3099.0,4.220817]
[1738165145539,3.22622,3099.6,3099.0,3.22677]
[1738165145892,6.45254,3099.6,3099.0,3.60677]
[1738165146182,3.22622,3099.6,3099.0,3.60677]
[1738165146399,3.22608,3099.8,3099.0,0.38]
[1738165146696,3.22608,3099.8,3099.3,3.22648]
[1738165146904,7.84806439,3100.0,3099.4,3.22637]
[1738165147039,0.63261439,3100.0,3099.5,0.7544]
[1738165147233,3.22571,3100.1,3099.6,3.22619]
[1738165147873,3.22557,3100.3,3099.8,3.22599]
[1738165149241,3.22557,3100.3,3099.9,0.0611461]
[1738165150578,3.22556,3100.3,3099.9,0.0611461]
[1738165150942,0.66076124,3100.5,3099.9,0.38985471]
[1738165151257,3.22514,3100.7,3100.0,4.00946]
[1738165151559,3.22514,3100.7,3100.0,0.7837]
[1738165151743,3.87408587,3100.6,3100.1,0.0610148]
[1738165151944,3.22531,3100.5,3100.1,0.0610148]
[1738165152339,0.04031623,3100.4,3100.1,0.0610148]
[1738165152540,3.22545,3100.4,3100.1,0.0610148]
[1738165152764,3.22545,3100.4,3099.9,0.38]
[1738165152965,3.22545,3100.4,3100.2,0.06094915]
[1738165153174,3.99903,3100.5,3099.9,0.38]
[1738165153379,3.22539,3100.4,3100.3,0.06088351]
[1738165153556,3.22539,3100.4,3099.9,3.6059]
[1738165153947,3.22539,3100.4,3100.0,0.06089469]
[1738165154343,0.64888587,3100.6,3100.0,0.06089469]
[1738165154543,0.65407051,3100.9,3100.3,0.8332]
[1738165154764,3.87897051,3100.9,3100.4,3.22529]
[1738165154965,3.2249,3100.9,3100.4,3.28591386]
[1738165155160,4.03242,3101.1,3100.4,0.06062386]
[1738165155161,0.64774662,3101.0,3100.4,0.06062386]
[1738165155396,3.22528,3100.5,3100.4,0.06062386]
[1738165155694,3.22554,3100.3,3100.0,0.784]
[1738165155909,3.22497,3100.8,3099.7,0.784]
[1738165156073,3.2257,3100.1,3099.7,0.784]
[1738165156973,3.22554,3100.3,3099.8,0.55]
[1738165157474,3.2257,3100.1,3099.6,3.22621]
[1738165157665,3.2257,3100.1,3099.4,3.2264]
[1738165157666,3.22586,3100.0,3099.5,3.0]
[1738165157861,3.2257,3100.1,3099.5,0.38]
[1738165158067,3.22592,3099.9,3099.5,0.38]
[1738165158287,3.22618,3099.7,3099.1,0.784]
[1738165158529,0.04032883,3099.6,3099.1,1.164]
[1738165158687,3.22618,3099.7,3099.1,0.784]
[1738165158897,3.22618,3099.7,3099.1,4.01071]
[1738165158898,3.22624,3099.6,3099.1,4.01071]
[1738165159097,3.22624,3099.6,3099.1,0.784]
[1738165159300,3.22636,3099.5,3099.1,0.784]
[1738165159498,3.22663,3099.2,3099.1,0.784]
[1738165159698,3.22663,3099.2,3098.6,3.22722]
[1738165159699,3.22645,3099.4,3098.9,37.935]
[1738165159928,3.22645,3099.4,3098.9,37.555]
[1738165160367,3.22628,3099.6,3099.0,3.22684]
[1738165160569,3.22628,3099.6,3099.1,3.22673]
[1738165160821,3.22605,3099.8,3099.2,3.22662]